bitfinex/quotes_ETHUSD_20220218
["timestamp","ask_amount","ask_price","bid_price","bid_amount"]
[1645146368776,0.00308534,2884.1,2883.9,1.47706751]
[1645146369178,0.00308534,2884.1,2883.9,2.34405751]
[1645146369379,0.00308534,2884.1,2884.0,1.47706751]
[1645146369580,5.23394,2885.1,2884.0,1.47706751]
[1645146369783,0.1733,2885.1,2884.0,1.47706751]
[1645146369980,0.1733,2885.1,2883.7,1.86215495]
[1645146369981,0.00308534,2884.1,2883.7,1.86215495]
[1645146370185,0.00308534,2884.1,2883.8,2.64406468]
[1645146370382,0.00308534,2884.1,2883.9,1.47703468]
[1645146370823,0.867,2884.7,2883.9,2.13224628]
[1645146371228,0.19844501,2884.8,2883.9,2.13224628]
[1645146371429,3.8098,2885.2,2884.0,1.47703468]
[1645146371629,2.1938,2885.2,2884.1,1.47703468]
[1645146371829,1.129,2885.4,2884.2,1.47703468]
[1645146372030,0.13819997,2885.5,2884.3,1.47703468]
[1645146372326,0.13819997,2885.5,2884.4,1.47703468]
[1645146372527,1.11887461,2885.3,2884.6,0.86677]
[1645146372731,1.11887461,2885.3,2884.7,1.47703468]
[1645146372929,0.86688,2885.2,2884.8,1.47703468]
[1645146373227,0.86688,2885.2,2884.3,3.15823031]
[1645146373426,0.86688,2885.2,2884.4,1.46417532]
[1645146373628,1.11887461,2885.3,2884.4,2.33102532]
[1645146373826,1.11887461,2885.3,2884.5,1.46417532]
[1645146374029,0.86681,2885.4,2884.6,1.46417532]
[1645146374233,2.7745,2886.1,2884.6,1.46417532]
[1645146374234,0.69847048,2886.2,2884.7,1.63747532]
[1645146374431,0.1731,2886.6,2884.8,5.46217532]
[1645146374674,1.1961,2886.9,2885.3,0.86643]
[1645146374675,2.98269879,2886.8,2885.3,0.86643]
[1645146374872,1.17734919,2886.6,2885.4,5.63527532]
[1645146375077,1.17734919,2886.6,2885.7,0.97366532]
[1645146375279,2.98269879,2887.3,2885.8,3.36980532]
[1645146375475,2.98269879,2887.3,2885.9,0.498]
[1645146375674,2.98269879,2887.3,2886.2,0.86623]
[1645146375675,0.87489879,2887.2,2886.2,0.86623]
[1645146375879,0.87489879,2887.2,2886.3,0.9711]
[1645146375880,0.00308546,2886.7,2886.3,0.9711]
[1645146376079,0.00308546,2886.7,2886.3,0.8711]
[1645146376280,0.00308546,2886.7,2886.4,1.45761595]
[1645146376679,0.00308546,2886.7,2886.4,2.75761595]
[1645146376881,0.13868,2887.5,2886.5,0.86618]
[1645146377183,0.00308546,2886.7,2885.9,0.6711]
[1645146377380,0.00308546,2886.7,2885.6,2.8972]
[1645146377581,0.00308546,2886.7,2885.7,1.43766347]
[1645146377783,0.00308546,2886.7,2885.8,1.43766347]
[1645146377978,0.00308546,2886.7,2885.5,0.798]
[1645146377979,1.07831426,2886.5,2885.5,2.01270372]
[1645146378182,0.07381367,2886.4,2885.6,1.43777885]
[1645146378426,0.00308562,2886.3,2885.6,1.43777885]
[1645146378621,0.00308562,2886.3,2885.6,2.43777885]
[1645146378822,0.00308562,2886.3,2885.7,1.43777885]
[1645146379221,0.07381367,2886.4,2885.7,1.43777885]
[1645146379429,3.57381367,2886.4,2885.7,1.43777885]
[1645146379626,3.57381367,2886.4,2884.8,0.00383431]
[1645146379627,1.11350367,2886.3,2884.8,0.00383431]
[1645146379824,1.11350367,2886.3,2884.8,1.43657182]
[1645146379825,25.64741367,2886.2,2884.8,1.43657182]
[1645146380023,0.9711,2886.1,2884.8,0.00383431]
[1645146380226,2.8944512,2886.1,2884.9,1.43273751]
[1645146380433,0.86687,2885.8,2884.8,0.00383431]
[1645146380626,0.86687,2885.8,2884.8,2.55453541]
[1645146380627,0.07381367,2885.7,2884.8,2.55453541]
[1645146380828,0.07381367,2885.7,2884.8,0.00383431]
[1645146380829,0.86684,2885.5,2884.8,0.00383431]
[1645146381033,0.24711367,2885.4,2884.8,0.00383431]
[1645146381229,0.07381367,2885.3,2884.8,0.00383431]
[1645146381630,0.07381367,2885.2,2884.8,0.00383431]
[1645146381829,0.07381367,2885.1,2884.8,0.00383431]
[1645146382072,0.86694,2885.1,2884.8,0.00383431]
[1645146382471,0.07384408,2885.0,2884.8,0.00383431]
[1645146382673,3.0,2884.9,2884.7,0.21353431]
[1645146383676,0.00308378,2885.0,2884.7,0.21353431]
[1645146384074,0.07384055,2885.3,2884.7,0.21353431]
[1645146384275,0.07384055,2885.2,2884.7,0.21353431]
[1645146384475,0.0030838,2885.0,2884.7,0.21353431]
[1645146384873,0.0030838,2885.0,2884.8,1.11918282]
[1645146385374,0.07383979,2885.6,2884.8,1.11918282]
[1645146385576,0.00302652,2885.0,2884.8,1.11918282]
[1645146385827,0.00302652,2885.0,2884.9,1.42579443]
[1645146386433,0.07383979,2885.5,2884.9,1.42579443]
[1645146386633,0.00302649,2885.1,2884.9,1.42579443]
[1645146387034,0.00302649,2885.1,2884.4,1.0]
[1645146387233,0.00302649,2885.1,2884.5,1.42627099]
[1645146387636,0.1733,2885.6,2884.6,1.42627099]
[1645146387835,0.1733,2885.6,2884.7,1.42627099]
[1645146387836,0.07384044,2885.5,2884.7,1.42627099]
[1645146388034,0.07384044,2885.5,2884.0,3.37565822]
[1645146388035,0.00302656,2884.9,2884.8,1.42627099]
[1645146388435,0.00302656,2884.9,2884.7,1.42627099]
[1645146388638,0.00302656,2884.9,2883.7,5.10003266]
[1645146388639,0.00302656,2884.9,2883.7,3.85323944]
[1645146388837,0.07384044,2884.9,2883.8,1.42776391]
[1645146389037,0.07384044,2885.2,2883.8,1.42776391]
[1645146389340,0.07384044,2885.2,2883.6,0.8285116]
[1645146389341,0.00308383,2884.9,2883.9,1.42776391]
[1645146389575,0.86709,2884.6,2884.1,0.90732092]
[1645146389781,0.86709,2884.6,2884.2,1.42776391]
[1645146390376,0.86709,2884.6,2884.2,1.72776391]
[1645146390377,0.001732,2884.5,2884.2,1.72776391]
[1645146390577,0.001732,2884.5,2884.3,1.42776391]
[1645146390982,0.001732,2884.5,2884.4,1.42776391]
[1645146391181,1.9208,2885.3,2884.1,0.90732092]
[1645146391182,0.07384227,2885.2,2884.7,0.00165901]
[1645146391781,2.67477227,2885.2,2884.7,0.00165901]
[1645146391982,3.57384227,2885.1,2884.7,0.00165901]
[1645146392181,0.07384227,2885.0,2884.7,0.00165901]
[1645146392582,5.5,2884.9,2883.9,1.0]
[1645146392980,5.5,2884.9,2883.7,1.4733]
[1645146393182,5.5,2884.9,2883.7,0.4733]
[1645146393424,5.5,2884.9,2883.7,1.1733]
[1645146393620,6.367,2884.9,2883.7,0.1733]
[1645146394121,0.00173059,2884.6,2883.7,1.07569695]
[1645146394320,0.00173059,2884.6,2884.2,1.03778587]
[1645146394920,2.74149062,2885.1,2884.2,1.03778587]
[1645146395120,0.00173065,2884.6,2884.2,1.03778587]
[1645146396225,1.73413,2885.1,2884.2,1.03778587]
[1645146396426,0.00308057,2884.6,2884.2,1.03778587]
[1645146397375,1.2358,2885.3,2884.2,2.29299747]
[1645146397774,0.00287186,2884.6,2884.2,2.29299747]
[1645146397974,0.00287186,2884.6,2884.3,0.6552116]
[1645146398178,5.41167032,2886.1,2884.7,0.86669]
[1645146398179,3.8859,2886.1,2884.7,0.86669]
[1645146398377,0.5735283,2886.6,2884.8,0.6711]
[1645146398378,3.5,2886.3,2884.8,0.6711]
[1645146398580,3.5,2886.3,2884.8,1.40835626]
[1645146398776,3.5,2886.5,2884.9,0.6554952]
[1645146399075,5.27511053,2886.5,2885.5,0.95658988]
[1645146399277,4.61606021,2886.5,2885.5,0.95658988]
[1645146399876,5.48257021,2886.5,2885.5,0.95658988]
[1645146400076,0.00161262,2886.1,2885.5,0.95658988]
[1645146400276,0.00161262,2886.1,2885.6,0.86649]
[1645146400675,0.00161262,2886.1,2885.6,1.86649]
[1645146400930,2.0997,2886.6,2885.7,1.73289]
[1645146401131,2.0997,2886.6,2886.1,0.89000472]
[1645146401329,2.0997,2886.6,2886.0,0.86633]
[1645146401629,7.3,2886.7,2885.8,2.20576]
[1645146401830,7.3,2886.7,2885.8,1.0]
[1645146402033,7.3,2886.7,2885.7,1.3]
[1645146402232,3.5,2886.6,2885.3,0.1731]
[1645146402432,0.9496568,2886.2,2885.2,1.17609907]
[1645146402830,0.66066205,2886.4,2885.3,0.86659]
[1645146403029,0.00161173,2886.4,2885.3,0.86659]
[1645146403429,5.28645032,2886.6,2885.6,1.73293]
[1645146403430,1.78645032,2886.6,2885.6,1.73293]
[1645146403636,0.00156413,2886.0,2885.6,1.16647]
[1645146403830,0.00156413,2886.0,2885.4,0.1731]
[1645146403831,0.00156413,2886.0,2885.7,2.59906]
[1645146404132,0.00156413,2886.0,2885.3,1.1731]
[1645146404331,0.00156413,2886.0,2884.9,0.1731]
[1645146404570,0.65905032,2886.3,2885.0,1.73315]
[1645146404772,4.15905032,2886.4,2885.0,2.73315]
[1645146404971,0.00156413,2885.8,2885.1,1.03143015]
[1645146405874,3.6731,2886.1,2885.1,1.03143015]
[1645146406073,0.00291576,2885.6,2885.1,1.03143015]
[1645146406673,0.00291576,2885.6,2885.2,0.8666]
[1645146407075,4.15905032,2886.5,2885.2,0.8666]
[1645146407274,0.00297662,2885.5,2885.2,0.8666]
[1645146407775,0.00297662,2885.5,2885.3,0.86655]
[1645146407974,0.00297662,2885.5,2885.4,0.86652]
[1645146408174,4.36654,2886.5,2885.4,0.86652]
[1645146408419,0.00297662,2885.5,2885.4,0.86652]
[1645146408723,0.00297662,2885.5,2885.4,2.04237088]
[1645146409318,0.00297662,2885.5,2885.4,2.90888088]
[1645146409520,0.86654,2886.5,2885.4,2.90888088]
[1645146409717,0.00297659,2885.6,2885.4,2.90888088]
[1645146410317,0.00297659,2885.6,2885.4,2.04236088]
[1645146410521,0.00297659,2885.6,2885.4,1.17585088]
[1645146410725,1.1977,2886.6,2885.5,0.86652]
[1645146410926,0.00287566,2885.6,2885.5,0.86652]
[1645146411324,0.65905032,2886.8,2885.8,0.00270265]
[1645146411527,3.5,2886.9,2885.8,0.00270265]
[1645146411528,0.65905032,2886.9,2885.8,0.00270265]
[1645146411726,0.4731,2887.0,2885.8,0.00270265]
[1645146411727,0.65905032,2886.8,2886.0,0.87173054]
[1645146411924,1.17743379,2887.0,2886.0,0.87173054]
[1645146411925,0.65905032,2886.9,2886.0,0.87173054]
[1645146412173,5.02547032,2886.9,2885.8,0.00270265]
[1645146412574,0.65905032,2886.7,2885.8,0.00270265]
[1645146412773,3.5,2886.6,2885.8,0.00270265]
[1645146412974,0.07381914,2886.5,2885.8,0.00270265]
[1645146413278,0.65905032,2886.6,2885.8,0.00270265]
[1645146413279,1.99450217,2886.4,2885.8,0.00270265]
[1645146413475,0.07381914,2886.3,2885.8,0.00270265]
[1645146414278,0.83215032,2886.2,2885.8,0.00270265]
[1645146414577,4.44054914,2886.1,2885.8,0.00270265]
[1645146414774,0.07381914,2886.0,2885.8,0.00270265]
[1645146415379,0.07381914,2885.9,2885.8,0.00270265]
[1645146416024,0.00308123,2886.0,2885.8,0.00270265]
[1645146416424,0.07690037,2886.0,2885.8,0.00270265]
[1645146416629,0.07381914,2885.9,2885.8,0.00270265]
[1645146417027,5.23333,2886.3,2885.8,0.00270265]
[1645146417028,0.00308123,2886.0,2885.8,0.00270265]
[1645146417625,0.07690037,2886.0,2885.8,0.00270265]
[1645146417826,0.07381914,2885.9,2885.8,0.00270265]
[1645146418226,0.86976123,2886.0,2885.8,0.00270265]
[1645146418425,0.07381914,2885.9,2885.8,0.00270265]
[1645146419232,0.83215032,2886.3,2885.8,0.00270265]
[1645146419233,0.07381914,2886.2,2885.8,0.00270265]
[1645146419428,0.00308126,2886.0,2885.8,0.00270265]
[1645146420283,0.07381914,2886.2,2885.8,0.00270265]
[1645146420479,0.00308123,2886.0,2885.8,0.00270265]
[1645146421284,0.07690037,2886.0,2885.8,0.00270265]
[1645146421584,0.07381914,2885.9,2885.8,0.00270265]
[1645146422383,0.73286946,2885.9,2885.8,0.00270265]
[1645146423086,0.07381914,2885.9,2885.8,0.00270265]
[1645146424326,0.73286946,2885.9,2885.8,0.00270265]
[1645146424925,0.07381914,2885.9,2885.8,0.00270265]
[1645146425127,0.73286946,2885.9,2885.8,0.00270265]
[1645146425932,0.07381914,2885.9,2885.8,0.00270265]
[1645146426132,0.00308126,2886.0,2885.8,0.00270265]
[1645146426333,0.07381914,2886.1,2885.8,0.00270265]
[1645146426631,0.0769004,2886.0,2885.8,0.00270265]
[1645146426835,0.07381914,2885.9,2885.8,0.00270265]
[1645146427075,0.00308126,2886.0,2885.8,0.00270265]
[1645146427478,0.07381914,2886.3,2885.8,0.00270265]
[1645146427778,0.00308123,2886.0,2885.8,0.00270265]
[1645146428377,0.07690037,2886.0,2885.8,0.00270265]
[1645146428577,0.07381914,2885.9,2885.8,0.00270265]
[1645146428976,0.00308123,2886.0,2885.8,0.00270265]
[1645146429780,0.07690037,2886.0,2885.8,0.00270265]
[1645146429979,0.07381914,2885.9,2885.8,0.00270265]
[1645146430180,0.65905032,2886.3,2885.8,0.00270265]
[1645146430380,0.00308123,2886.0,2885.8,0.00270265]
[1645146430581,0.86973123,2886.0,2885.8,0.00270265]
[1645146430829,0.07381914,2885.9,2885.8,0.00270265]
[1645146431634,0.07381914,2885.9,2885.8,0.00110761]
[1645146435079,0.0769004,2886.0,2885.8,0.00110761]
[1645146435274,0.07381914,2885.9,2885.8,0.00110761]
[1645146435882,0.07381914,2886.0,2885.8,0.00110761]
[1645146436080,0.07381914,2885.9,2885.8,0.00110761]
[1645146436283,0.9435204,2886.0,2885.8,0.00110761]
[1645146436481,0.07381914,2885.9,2885.8,0.00110761]
[1645146438323,0.73286946,2886.2,2885.8,0.00110761]
[1645146438523,0.00308126,2886.0,2885.8,0.00110761]
[1645146438726,0.0769004,2886.0,2885.8,0.00110761]
[1645146438925,0.07381914,2885.9,2885.8,0.00110761]
[1645146439125,0.00308126,2886.0,2885.8,0.00110761]
[1645146439524,0.65905032,2886.3,2885.8,2.28138809]
[1645146439730,0.00308123,2886.0,2885.9,1.41382048]
[1645146440127,0.00308123,2886.0,2885.9,1.71382048]
[1645146440327,0.00308123,2886.0,2885.9,3.21182048]
[1645146440528,0.65905032,2886.9,2886.0,3.5]
[1645146440727,0.65905032,2887.0,2886.7,1.07338607]
[1645146441132,0.73286041,2887.0,2886.8,0.86618]
[1645146441331,0.07381009,2886.9,2886.8,0.86618]
[1645146441637,0.87489879,2887.4,2886.9,1.73214]
[1645146441638,0.65905032,2887.4,2886.9,1.73214]
[1645146441832,0.73284792,2887.4,2886.9,1.73214]
[1645146442083,0.65905032,2887.3,2887.2,1.79232998]
[1645146442276,0.0737976,2887.3,2887.2,1.79232998]
[1645146442480,0.0737976,2887.3,2887.2,2.65829998]
[1645146442677,0.0737976,2887.4,2886.6,2.72443]
[1645146442977,0.0737976,2887.4,2886.7,1.40458736]
[1645146442978,0.65905032,2887.3,2886.7,1.40458736]
[1645146443178,0.73284792,2887.2,2886.6,0.86622]
[1645146443387,0.73284792,2887.2,2885.9,7.2946]
[1645146443388,0.65905032,2886.9,2886.1,0.1731]
[1645146443577,0.65905032,2886.9,2885.8,2.10304754]
[1645146443578,0.73284792,2886.8,2886.2,1.40490517]
[1645146443777,0.0737976,2886.7,2886.4,0.85256258]
[1645146443979,0.0737976,2886.6,2885.8,1.73386761]
[1645146444182,0.0737976,2886.5,2885.9,1.40497238]
[1645146444379,0.65905032,2886.8,2886.0,0.86641]
[1645146444578,0.0737976,2886.9,2886.0,0.86641]
[1645146444579,0.00307864,2886.3,2886.1,1.40497238]
[1645146445179,0.00307864,2886.3,2886.1,0.85557857]
[1645146445579,0.65905032,2886.7,2886.1,0.85557857]
[1645146446033,0.00307864,2886.3,2886.1,0.85557857]
[1645146446834,0.73284792,2886.6,2886.1,0.85557857]
[1645146447036,0.00307864,2886.3,2886.1,0.85557857]
[1645146447543,0.07687624,2886.3,2886.1,0.85557857]
[1645146447732,0.0737976,2886.2,2886.1,0.85557857]
[1645146447933,0.65905032,2886.6,2886.1,0.85557857]
[1645146448134,0.00307864,2886.3,2886.1,0.85557857]
[1645146448735,0.66212896,2886.3,2885.8,0.00110761]
[1645146448935,0.0737976,2886.2,2885.8,0.00110761]
[1645146449135,0.73284792,2886.4,2885.8,0.00110761]
[1645146449335,0.00307871,2886.2,2885.8,0.00110761]
[1645146449578,0.00183122,2886.2,2885.8,0.00110761]
[1645146449980,2.5,2886.1,2885.5,0.86655]
[1645146450185,0.0737976,2886.0,2885.6,1.39829132]
[1645146450379,0.0737976,2886.0,2885.2,0.86665]
[1645146450984,0.0737976,2886.0,2884.9,5.06183]
[1645146451185,0.0737976,2886.0,2885.2,1.09520936]
[1645146451387,0.0737976,2886.0,2885.2,1.96185936]
[1645146451985,0.0737976,2886.0,2885.2,1.95688936]
[1645146452587,0.0737976,2886.0,2885.2,1.09023936]
[1645146452790,0.0737976,2886.0,2885.2,1.06574936]
[1645146453335,0.0737976,2886.0,2885.2,1.03010936]
[1645146453535,0.0737976,2886.0,2885.2,1.00946936]
[1645146454636,0.0737976,2886.0,2885.2,1.87610936]
[1645146455638,0.0737976,2886.0,2885.2,0.86664]
[1645146455839,0.0737976,2886.0,2885.0,0.86669]
[1645146455840,0.90594792,2886.0,2885.0,0.86669]
[1645146456042,0.65905032,2885.9,2885.0,0.86669]
[1645146456241,0.65905032,2886.0,2885.0,0.86669]
[1645146456639,0.65905032,2886.0,2885.2,0.00308059]
[1645146456839,0.65905032,2886.0,2885.3,0.93925039]
[1645146457076,0.65905032,2885.9,2885.3,0.84532536]
[1645146457578,1.52577032,2886.0,2885.3,0.84532536]
[1645146457774,0.65905032,2886.0,2885.3,0.84532536]
[1645146460079,0.65905032,2885.9,2885.3,0.84532536]
[1645146460279,0.65905032,2886.0,2885.3,0.84532536]
[1645146461034,0.65905032,2885.9,2885.3,0.84532536]
[1645146461236,0.65905032,2886.0,2885.3,1.71190536]
[1645146461932,5.26175032,2886.1,2885.3,1.71190536]
[1645146462134,0.65905032,2886.0,2885.3,1.71190536]
[1645146462534,0.65905032,2885.9,2885.3,1.71190536]
[1645146462735,0.65905032,2885.9,2885.4,0.86657]
[1645146462934,0.65905032,2885.9,2885.3,0.84532536]
[1645146463535,0.65905032,2885.8,2885.3,0.84532536]
[1645146463734,0.65905032,2885.9,2885.3,0.84532536]
[1645146463934,0.65905032,2885.9,2885.3,1.71193536]
[1645146464574,4.6027,2886.1,2885.3,2.57852536]
[1645146464575,0.65905032,2886.0,2885.3,2.57852536]
[1645146465576,0.65905032,2886.0,2885.3,1.71191536]
[1645146465780,0.65905032,2886.0,2885.4,0.86659]
[1645146467182,0.65905032,2885.9,2885.4,0.86659]
[1645146467584,0.65905032,2886.0,2885.4,0.86659]
[1645146468083,0.65905032,2886.0,2885.4,1.37781777]
[1645146468737,0.65905032,2886.0,2885.3,1.71195536]
[1645146468937,0.65905032,2885.9,2885.3,1.71195536]
[1645146469136,0.65905032,2886.0,2885.3,1.71195536]
[1645146469338,0.65905032,2885.9,2885.3,1.71195536]
[1645146469536,0.65905032,2885.9,2885.3,2.57854536]
[1645146469738,0.65905032,2885.9,2885.5,0.86659]
[1645146470539,0.65905032,2885.9,2885.3,0.84532536]
[1645146471341,2.5,2886.1,2885.3,0.84532536]
[1645146471342,0.07383951,2885.8,2885.3,0.84532536]
[1645146471542,0.07383951,2886.0,2885.3,0.84532536]
[1645146471743,3.10778689,2886.1,2885.3,1.71196536]
[1645146471744,0.07383951,2885.9,2885.3,1.71196536]
[1645146471944,0.07383951,2885.8,2885.3,1.71196536]
[1645146472185,0.07383951,2885.7,2885.3,1.71196536]
[1645146472385,0.07383951,2885.6,2885.3,2.57858536]
[1645146472686,0.07383951,2885.5,2885.3,2.57858536]
[1645146472887,0.07383951,2885.4,2885.2,0.86956488]
[1645146473085,0.07383951,2885.4,2885.2,0.00288488]
[1645146473287,0.07383951,2885.4,2884.6,0.52665961]
[1645146473492,3.5,2885.9,2885.2,0.00288473]
[1645146473493,0.07383951,2885.3,2885.2,0.00288473]
[1645146473989,1.80772951,2885.3,2885.2,0.00288473]
[1645146474384,1.80772951,2885.3,2884.6,0.52665961]
[1645146474586,3.57383951,2885.2,2884.6,0.52665961]
[1645146474787,1.73389,2885.3,2884.7,0.01154061]
[1645146474788,0.07383951,2885.1,2884.7,0.01154061]
[1645146474991,0.07383951,2885.0,2884.7,0.87835061]
[1645146475187,5.45654879,2885.7,2884.7,0.87835061]
[1645146475188,0.07383951,2884.9,2884.7,0.87835061]
[1645146475389,3.5,2885.7,2884.7,1.74513061]
[1645146475589,0.07384858,2885.6,2884.8,1.41895811]
[1645146475840,0.07384858,2885.5,2884.9,0.1731]
[1645146476049,0.07384858,2885.4,2885.0,2.28565811]
[1645146476241,0.07384858,2885.3,2885.1,3.15201811]
[1645146476444,2.534082,2886.3,2885.7,0.86474775]
[1645146476642,0.07383578,2886.2,2885.7,0.86474775]
[1645146476841,0.07383578,2886.1,2885.7,0.86474775]
[1645146477045,0.07383578,2886.0,2885.7,0.77827298]
[1645146477242,0.07383578,2885.9,2885.7,0.77827298]
[1645146477542,0.0028861,2886.3,2885.7,0.77827298]
[1645146477543,0.07383578,2885.8,2885.7,0.77827298]
[1645146477939,0.0028861,2886.3,2885.7,0.77827298]
[1645146477940,0.07383578,2886.3,2885.7,0.77827298]
[1645146478142,0.07383578,2886.2,2885.7,1.64477298]
[1645146478343,0.07383578,2886.1,2885.7,1.64477298]
[1645146478547,0.07383578,2886.0,2885.7,1.64477298]
[1645146478742,0.07383578,2885.9,2885.7,1.29559858]
[1645146479141,0.07383578,2885.8,2885.7,1.29559858]
[1645146479591,0.00287296,2886.3,2885.7,2.71290222]
[1645146479790,0.00287296,2886.3,2885.8,1.41726583]
[1645146480190,0.0766962,2886.3,2885.8,1.41726583]
[1645146480394,0.07382324,2886.2,2885.9,0.1731]
[1645146480591,2.42309879,2887.0,2886.1,1.73248]
[1645146480791,0.00287078,2886.3,2886.2,1.13211587]
[1645146481594,0.66024396,2886.7,2886.2,1.13211587]
[1645146481793,0.00287085,2886.4,2886.2,1.13211587]
[1645146482895,0.07381866,2886.4,2886.2,1.13211587]
[1645146483095,0.07381866,2886.3,2886.2,1.13211587]
[1645146483331,0.00288385,2886.4,2886.2,1.13211587]
[1645146484035,0.73406262,2886.7,2886.2,1.13211587]
[1645146484234,0.00288472,2886.4,2886.2,1.13211587]
[1645146484633,0.07670338,2886.4,2886.2,1.13211587]
[1645146484932,0.00288472,2886.4,2886.2,1.13211587]
[1645146485133,0.07381866,2886.7,2886.2,1.13211587]
[1645146485333,0.07381866,2886.6,2886.2,1.13211587]
[1645146485534,0.07381661,2886.5,2886.3,0.8663]
[1645146485733,0.07381661,2886.4,2886.3,0.8663]
[1645146486138,0.66015699,2886.9,2886.3,0.8663]
[1645146486739,0.7339736,2886.8,2886.3,0.8663]
[1645146486938,0.07381661,2886.7,2886.3,0.8663]
[1645146487181,0.07381661,2886.6,2886.3,0.8663]
[1645146487484,0.07381661,2886.5,2886.3,1.73257]
[1645146487684,2.86312186,2887.4,2886.5,0.86622]
[1645146487685,0.66015699,2887.0,2886.5,0.86622]
[1645146488683,0.66015699,2887.0,2886.9,0.8814594]
[1645146488887,0.0738154,2887.0,2886.9,0.8814594]
[1645146489087,0.0738154,2887.3,2886.9,0.8814594]
[1645146489283,0.0738154,2887.2,2886.9,0.8814594]
[1645146489483,0.0738154,2887.1,2886.9,0.8814594]
[1645146489783,0.13819997,2887.4,2886.9,0.8814594]
[1645146489784,0.0738154,2887.0,2886.9,0.8814594]
[1645146489984,0.6607916,2887.0,2886.9,0.8814594]
[1645146490388,0.0738154,2887.0,2886.9,0.8814594]
[1645146490590,0.6607916,2887.0,2886.9,0.8814594]
[1645146492164,0.6607916,2887.0,2886.9,0.6314594]
[1645146492368,0.6607916,2887.0,2886.6,0.86624]
[1645146492566,0.6607916,2886.9,2886.2,3.46504]
[1645146492865,0.734607,2886.8,2886.2,1.73251]
[1645146493066,0.0738154,2886.7,2886.2,1.73251]
[1645146493264,0.0738154,2886.6,2886.2,1.73251]
[1645146493464,0.0738154,2886.5,2886.4,1.04462076]
[1645146493866,0.00294187,2886.5,2886.4,1.04462076]
[1645146494889,0.6607916,2886.6,2886.4,1.04462076]
[1645146495085,0.0738154,2886.5,2886.4,1.04462076]
[1645146495285,0.00287992,2886.6,2886.0,1.90577]
[1645146495286,0.66367152,2886.6,2886.0,1.90577]
[1645146495486,0.00287992,2886.6,2886.1,1.73261]
[1645146496094,0.6607916,2886.8,2886.1,1.73261]
[1645146496293,0.95444442,2887.1,2886.1,2.59895]
[1645146496294,0.00287991,2886.5,2886.1,2.59895]
[1645146496494,0.00287991,2886.5,2886.3,0.86633]
[1645146496889,0.07669531,2886.5,2886.3,0.86633]
[1645146497096,0.0738154,2886.4,2886.3,1.24400048]
[1645146497691,0.00287994,2886.5,2886.3,1.24400048]
[1645146497992,0.00287994,2886.5,2886.3,0.98408547]
[1645146498433,0.734607,2886.7,2886.3,0.98408547]
[1645146498631,0.3,2886.8,2886.3,0.98408547]
[1645146498632,0.734607,2886.6,2886.3,0.98408547]
[1645146498832,0.73749114,2886.5,2886.3,0.98408547]
[1645146499034,0.0738154,2886.4,2886.3,0.98408547]
[1645146499439,0.0738154,2886.4,2886.1,0.86639]
[1645146499635,0.6607916,2886.6,2885.8,3.46558]
[1645146499636,0.0738154,2886.3,2885.8,3.46558]
[1645146499836,0.0738154,2886.2,2885.8,3.46558]
[1645146500038,0.66367571,2886.5,2885.8,3.46558]
[1645146500436,0.00288411,2886.5,2885.8,3.46558]
[1645146500735,0.07669951,2886.5,2885.9,1.73281]
[1645146500940,0.00479527,2886.5,2886.0,1.16913649]
[1645146501142,0.0738154,2886.4,2886.0,1.16913649]
[1645146501540,0.0738154,2886.3,2886.0,1.16913649]
[1645146502186,0.0738154,2886.3,2885.7,0.5173256]
[1645146503189,0.6607916,2886.2,2885.5,3.7259123]
[1645146503387,3.5,2886.1,2885.5,1.1263623]
[1645146503588,3.5,2886.1,2885.6,0.00288452]
[1645146503589,0.0738154,2886.0,2885.6,0.00288452]
[1645146503990,0.86681,2885.8,2885.6,0.00288452]
[1645146504189,0.0738154,2885.7,2885.6,0.00288452]
[1645146504392,0.0738154,2885.7,2884.8,0.8668]
[1645146504689,0.0738154,2885.7,2885.6,0.00288442]
[1645146505488,3.5738154,2885.7,2885.6,0.00288442]
[1645146505689,3.5738154,2885.7,2884.6,1.90664]
[1645146505690,4.4405854,2885.7,2884.6,1.90664]
[1645146505942,0.0738154,2885.6,2885.5,0.00288447]
[1645146506141,5.4807454,2885.6,2885.5,8.447e-05]
[1645146506340,6.5787454,2885.6,2885.5,8.447e-05]
[1645146506541,7.4456654,2885.6,2885.5,8.447e-05]
[1645146506738,6.5787454,2885.6,2884.5,0.52110844]
[1645146506941,0.73414125,2885.5,2884.6,1.44001478]
[1645146507141,0.73414125,2885.5,2884.8,1.10856697]
[1645146507142,3.5,2885.4,2884.8,1.10856697]
[1645146507439,0.0738154,2885.3,2884.8,1.10856697]
[1645146507839,0.0738154,2885.2,2884.8,1.10856697]
[1645146509046,0.0738154,2885.2,2884.5,0.52110844]
[1645146509245,0.0738154,2885.2,2884.6,1.43959307]
[1645146509450,5.3934,2885.8,2884.6,2.30639307]
[1645146509451,0.0738154,2885.1,2884.6,2.30639307]
[1645146509702,0.3,2885.5,2884.9,0.00308067]
[1645146509902,0.07385251,2885.4,2884.9,0.00308067]
[1645146510305,0.07385251,2885.3,2885.1,1.05279118]
[1645146510503,0.07385251,2885.3,2884.5,2.25841412]
[1645146510504,0.07385251,2885.2,2884.5,2.25841412]
[1645146510705,0.07385251,2885.1,2885.0,0.0030806]
[1645146511108,0.73417836,2885.5,2885.0,0.0030806]
[1645146511308,1.03417836,2885.5,2885.0,0.0030806]
[1645146511514,0.07385251,2885.4,2885.0,0.0030806]
[1645146511713,0.86692,2885.3,2884.5,0.52492412]
[1645146511912,0.07385251,2885.2,2885.1,0.00308055]
[1645146512911,0.96032585,2885.5,2884.5,1.65242388]
[1645146512912,0.07385251,2885.4,2884.5,1.65242388]
[1645146513213,0.07385251,2885.4,2885.0,0.0030806]
[1645146513214,0.37385251,2885.4,2885.0,0.0030806]
[1645146513436,0.07385251,2885.3,2885.0,0.0030806]
[1645146513842,0.07385251,2885.2,2885.0,0.0030806]
[1645146514040,0.07385251,2885.2,2884.5,1.65242388]
[1645146514439,0.07385251,2885.2,2885.0,0.0030806]
[1645146515239,0.07385251,2885.2,2884.5,0.52492412]
[1645146515438,0.07385251,2885.2,2885.0,0.00308062]
[1645146516442,0.07385251,2885.2,2884.6,0.00381568]
[1645146516641,0.07385251,2885.2,2885.0,0.00308062]
[1645146517090,0.07385251,2885.2,2885.0,0.00228062]
[1645146517690,0.07385251,2885.2,2884.6,0.00381568]
[1645146519492,0.07385251,2885.2,2884.6,1.44144829]
[1645146519898,0.07385251,2885.2,2884.6,0.00381568]
[1645146521536,0.07385251,2885.2,2885.0,0.99234125]
[1645146522742,0.07385251,2885.2,2885.0,0.99542187]
[1645146523741,0.07385251,2885.2,2885.0,0.99234125]
[1645146523940,0.07385251,2885.2,2885.0,0.99542187]
[1645146524802,0.07385251,2885.2,2885.0,0.99234125]
[1645146524993,0.07385251,2885.2,2884.6,0.87056568]
[1645146525398,0.07385251,2885.2,2885.0,0.00308062]